[Event "87th Tata Steel Challengers 2025"]
[Site "Wijk aan Zee"]
[Date "2025.01.25"]
[Round "7.4"]
[White "L'Ami, Erwin"]
[Black "Suleymanli, Aydin"]
[Result "1/2-1/2"]
[Annotator "TA"]
[ECO "C50"]
[WhiteElo "2614"]
[BlackElo "2623"]
[PlyCount "82"]
[EventDate "2025.01.13"]
[EventType "tourn"]
[EventCountry "NED"]
[SourceTitle "playchess.com"]
[Source "ChessBase"]
[SourceQuality "1"]
[TimeControl "40/6000+30:20/3000+30:900+30"]

{[%evp 10,82,12,0,21,11,26,19,28,6,10,3,3,1,2,4,13,14,30,21,35,23,29,21,23,24,44,41,44,57,61,41,41,35,30,28,31,0,0,0,34,12,16,15,9,16,8,18,12,0,11,0,0,0,0,0,0,0,13,14,13,9,11,8,10,11,46,46,46,46,46,0,0,0,0]} 1. e4 {[%emt 0:00:06]} e5 {[%emt 0:00:07]} 2. Nf3 {[%emt 0:00:20]} Nc6 {[%emt 0:01:58]} 3. Bc4 {[%emt 0:00:12]} Nf6 {[%emt 0:00:11]} 4. d3 {[%emt 0:00:10]} Bc5 {[%emt 0:00:12]} 5. Nc3 {[%emt 0:00:35]} h6 {[%emt 0:00:42]} 6. Be3 {[%emt 0:00:43]} Bb4 {[%emt 0:01:15] C50: Hungarian Defence and Giuoco Pianissimo.} 7. Nd2 {[%emt 0:00:50]} Ne7 $146 {[%emt 0:05:55]} (7... Bxc3 8. bxc3 O-O 9. Qf3 d6 10. h3 Be6 11. Bb3 a5 12. Ba4 Rb8 13. Qg3 Nh5 14. Qf3 {½-½ Nepomniachtchi,I (2758)-Durarbayli,V (2531) Wch Rapid New York 2024 (4)}) 8. Bb3 {[%emt 0:01:38]} c6 {[%emt 0:06:10]} 9. d4 {[%emt 0:05:11]} d6 {[%emt 0:07:41]} 10. a3 {[%emt 0:08:42]} Bxc3 {[%emt 0:01:55]} 11. bxc3 {[%emt 0:00:16]} O-O {[%emt 0:04:58]} 12. O-O {[%emt 0:04:41]} Ng6 {[%emt 0:03:52]} 13. f3 {[%emt 0:02:35]} Qe7 {[%emt 0:08:33]} 14. Re1 {[%emt 0:06:13]} Be6 {[%emt 0:06:25]} 15. dxe5 {[%emt 0:07:06]} dxe5 {[%emt 0:01:43]} 16. Bxe6 {[%emt 0:00:47]} Qxe6 {[%emt 0:01:01]} 17. Qb1 {[%emt 0:00:16]} b5 {[%emt 0:02:45]} 18. Qb3 {[%emt 0:04:15]} Qc8 {[%emt 0:04:04]} 19. c4 {[%emt 0:04:08]} a6 {[%emt 0:02:31]} 20. cxb5 {[%emt 0:03:33]} cxb5 {[%emt 0:01:15]} 21. c4 {[%emt 0:00:33]} Rb8 {[%emt 0:04:02]} 22. Rac1 {[%emt 0:04:50] [#] Hoping for cxb5.} Qd7 {[%emt 0:11:43]} 23. Red1 {[%emt 0:07:15]} Nf4 {[%emt 0:02:43]} 24. Bxf4 {[%emt 0:02:44]} bxc4 {[%emt 0:05:03]} 25. Qxc4 {[%emt 0:02:27]} exf4 {[%emt 0:01:51]} 26. Nb3 {[%emt 0:04:21][%cal Bd2b3,Bb3d4,Bd4e2,Be2f4][%mdl 32]} Rfc8 {[%emt 0:07:19] [#]} 27. Qxc8+ $1 {[%emt 0:13:27]} Qxc8 {[%emt 0:00:24]} 28. Rxc8+ {[%emt 0:00:11]} Rxc8 $11 {[%emt 0:00:05][%mdl 4096] Endgame KRN-KRN} 29. Nd4 {[%emt 0:01:21]} Rc3 {[%emt 0:06:37]} 30. Ne2 {[%emt 0:08:59][%csl LRc3,LRf4]} Rxa3 {[%emt 0:00:05]} 31. Nxf4 {[%emt 0:00:56]} g5 {[%emt 0:01:08]} 32. Ne2 {[%emt 0:03:02]} Nh5 {[%emt 0:00:38]} 33. Rd6 {[%emt 0:01:08]} Nf4 {[%emt 0:08:58]} 34. Nxf4 {[%emt 0:01:25] KRN-KR} Ra1+ {[%emt 0:00:20]} 35. Kf2 {[%emt 0:00:07]} gxf4 {[%emt 0:00:03] KR-KR} 36. h4 {[%emt 0:00:57]} Kg7 {[%emt 0:00:46]} 37. Rd5 {[%emt 0:01:10]} Rb1 {[%emt 0:00:58]} 38. Ra5 $1 {[%emt 0:00:45]} Rb6 {[%emt 0:00:55]} 39. Kg1 {[%emt 0:01:44]} f6 {[%emt 0:01:40]} 40. h5 {[%emt 0:04:55]} (40. Ra2 $14) 40... Rb1+ {[%emt 0:00:39]} 41. Kh2 {[%emt 0:51:54]} Rb5 {[%emt 0:50:16] Weighted Error Value: White=0.07 (flawless) /Black=0.07 (flawless)   Mistake:       	White=1     	---        Inaccurate:     	White=1     	Black=2      OK:         	White=9     	Black=13     Best:        	White=1     	Black=2      Strong:       	White=1     	---} 1/2-1/2

[Event "87th Tata Steel Challengers 2025"]
[Site "Wijk aan Zee"]
[Date "2025.01.25"]
[Round "7.5"]
[White "Vaishali, Rameshbabu"]
[Black "Bok, Benjamin"]
[Result "1/2-1/2"]
[Annotator "TA"]
[ECO "B22"]
[WhiteElo "2476"]
[BlackElo "2583"]
[PlyCount "108"]
[EventDate "2025.01.13"]
[EventType "tourn"]
[EventCountry "NED"]
[SourceTitle "playchess.com"]
[Source "ChessBase"]
[SourceQuality "1"]
[TimeControl "40/6000+30:20/3000+30:900+30"]

{[%evp 9,108,8,26,20,52,12,21,12,23,21,0,0,0,0,0,0,0,0,0,-6,-13,-5,-10,-8,0,-10,-10,-17,-14,-18,-12,-20,-13,-22,-23,-28,-23,-26,-29,-29,-23,-24,-15,-20,-21,-33,-34,-35,-35,-28,-31,-39,-38,-45,-35,-35,-43,-40,-36,-39,-35,-37,-37,-32,-25,-38,-38,-36,-38,-60,-20,-20,0,-59,0,-14,-19,-12,-10,-10,-12,-12,-13,-17,-17,-19,-21,-28,-16,-16,-16,-16,-8,-8,-8,-8,-8,-8,-8,-8,-8]} 1. e4 {[%emt 0:00:12][%cal Be2e4,Be4e5][%mdl 32]} c5 {[%emt 0:00:05][%cal Bc7c5,Bc5c4][%mdl 32]} 2. c3 {[%emt 0:00:07]} Nf6 {[%emt 0:02:59]} 3. e5 {[%emt 0:00:12]} Nd5 {[%emt 0:00:09]} 4. Bc4 {[%emt 0:00:05][%cal Bf1c4,Bc4b3,Bb3c2][%mdl 32]} Nb6 {[%emt 0:03:57]} 5. Bb3 {[%emt 0:00:08]} c4 {[%emt 0:15:10]} 6. Bc2 {[%emt 0:00:06] B22: Sicilian: 2 c3.} d5 {[%emt 0:00:06]} 7. exd6 {[%emt 0:06:35]} Qxd6 {[%emt 0:00:15]} 8. Na3 {[%emt 0:00:18]} Nc6 {[%emt 0:00:50]} 9. b3 {[%emt 0:00:33]} Ne5 {[%emt 0:18:01]} 10. Nxc4 {[%emt 0:01:54]} Nbxc4 {[%emt 0:05:33]} 11. d4 {[%emt 0:01:14][%cal Og1e2]} Nb6 {[%emt 0:11:56]} 12. dxe5 {[%emt 0:00:13]} Qxe5+ {[%emt 0:00:24]} 13. Ne2 {[%emt 0:00:56]} Bg4 {[%emt 0:01:15] [#]} 14. Bf4 {[%emt 0:29:34]} Qxf4 {[%emt 0:02:42]} 15. Nxf4 {[%emt 0:00:03]} Bxd1 {[%emt 0:00:06]} 16. Rxd1 {[%emt 0:00:07]} Rc8 $146 {[%emt 0:03:54]} (16... g6 17. Be4 Rb8 18. O-O Bh6 19. Nd3 Nd7 20. c4 O-O 21. c5 Bg7 22. b4 e6 {1-0 Marchisotti,M (2226)-Scharf,N (2066) W-ch WS/M/265 email 2010}) 17. Be4 {[%emt 0:11:51]} Rxc3 {[%emt 0:04:10]} 18. Bxb7 {[%emt 0:00:39]} e6 {[%emt 0:00:10]} 19. O-O {[%emt 0:06:39]} Ba3 {[%emt 0:01:39]} 20. Rfe1 {[%emt 0:09:28]} Ke7 {[%emt 0:04:18]} 21. Ne2 {[%emt 0:03:29]} Rc7 {[%emt 0:02:27]} 22. Bf3 {[%emt 0:08:54]} Bb4 {[%emt 0:06:40]} 23. Rc1 {[%emt 0:04:09]} Rd7 {[%emt 0:01:36]} 24. Red1 {[%emt 0:00:11]} Rhd8 {[%emt 0:00:33]} 25. Rxd7+ {[%emt 0:00:27]} Rxd7 {[%emt 0:00:06]} 26. g3 {[%emt 0:08:31]} f5 {[%emt 0:01:31]} 27. Rc2 {[%emt 0:04:49]} e5 {[%emt 0:00:53]} 28. Bc6 {[%emt 0:04:37]} Rd2 {[%emt 0:06:13]} 29. Rxd2 {[%emt 0:00:26]} Bxd2 $15 {[%emt 0:00:01][%mdl 4096] Endgame KBN-KBN} 30. a3 {[%emt 0:06:57]} Kd6 {[%emt 0:00:51]} 31. Bb5 {[%emt 0:00:17]} Kc5 {[%emt 0:08:16]} 32. Be8 {[%emt 0:00:04]} a5 {[%emt 0:01:03]} 33. Kg2 {[%emt 0:00:11]} Nd5 {[%emt 0:02:45]} 34. h3 {[%emt 0:00:51]} Nf6 {[%emt 0:02:18]} 35. Bf7 {[%emt 0:00:04]} Kd6 {[%emt 0:00:09]} 36. Bc4 {[%emt 0:01:24]} g5 {[%emt 0:02:06]} 37. Ba6 {[%emt 0:02:07]} Nd5 {[%emt 0:02:12]} 38. Bc8 {[%emt 0:00:34]} Ne7 {[%emt 0:00:29]} 39. Bb7 {[%emt 0:00:11]} Kc7 {[%emt 0:01:31]} 40. Ba6 {[%emt 0:00:19]} Kd6 {[%emt 0:00:36]} 41. Bb7 {[%emt 0:03:05]} Nd5 {[%emt 0:13:07]} 42. Bc8 {[%emt 0:03:57]} f4 {[%emt 0:01:52]} 43. Kf3 {[%emt 0:08:04]} Nf6 {[%emt 0:01:04] [#]} 44. gxf4 {[%emt 0:00:56]} gxf4 {[%emt 0:00:40] ...e4+ is the strong threat.} 45. Bb7 {[%emt 0:01:01]} h6 {[%emt 0:02:41]} 46. Ba8 {[%emt 0:06:56]} Kc5 {[%emt 0:02:27]} 47. Bb7 {[%emt 0:02:30]} Kb5 {[%emt 0:01:36]} 48. Kg2 {[%emt 0:05:47]} a4 {[%emt 0:08:13]} 49. bxa4+ {[%emt 0:00:11] The position is equal.} Kxa4 {[%emt 0:00:02]} 50. Ng1 {[%emt 0:00:59]} Bc1 {[%emt 0:07:09]} 51. Nf3 {[%emt 0:03:59]} e4 {[%emt 0:01:34]} (51... Bxa3 52. Nxe5 Kb3 53. Kf3 $16) 52. Ne5 {[%emt 0:00:18]} Bxa3 {[%emt 0:07:51]} 53. Ng4 {[%emt 0:00:25]} Nxg4 {[%emt 0:00:29]} 54. hxg4 {[%emt 0:00:02]} e3 {[%emt 0:00:10] Weighted Error Value: White=0.04 (flawless) /Black=0.05 (flawless)   Inaccurate:     	White=1     	Black=3      OK:         	White=23    	Black=25     Best:        	White=2     	Black=1} 1/2-1/2

[Event "87th Tata Steel Challengers 2025"]
[Site "Wijk aan Zee"]
[Date "2025.01.25"]
[Round "7.6"]
[White "Gurel, Ediz"]
[Black "Yakubboev, Nodirbek"]
[Result "1-0"]
[Annotator "TA"]
[ECO "C65"]
[WhiteElo "2624"]
[BlackElo "2659"]
[PlyCount "75"]
[EventDate "2025.01.13"]
[EventType "tourn"]
[EventCountry "NED"]
[SourceTitle "playchess.com"]
[Source "ChessBase"]
[SourceQuality "1"]
[TimeControl "40/6000+30:20/3000+30:900+30"]

{[%evp 9,75,13,18,10,12,5,10,13,6,0,0,-8,18,-6,20,17,19,19,4,10,5,14,12,15,13,17,39,50,23,32,78,41,26,29,20,11,8,0,165,161,169,161,167,149,133,0,0,0,28,0,0,0,0,0,25,0,2,-10,-34,-27,388,384,868,839,29982,29983,29996,29997]} 1. e4 {[%emt 0:00:06]} e5 {[%emt 0:04:46]} 2. Nf3 {[%emt 0:00:04]} Nc6 {[%emt 0:00:08]} 3. Bb5 {[%emt 0:00:13]} Nf6 {[%emt 0:02:12]} 4. d3 {[%emt 0:00:22]} Bc5 {[%emt 0:01:03]} 5. Bxc6 {[%emt 0:00:14]} dxc6 {[%emt 0:00:02]} 6. Nbd2 {[%emt 0:00:13][%cal Od2c4] C65: Ruy Lopez: Berlin Defence (3...Nf6), unusual lines and 4 0-0 Bc5.} (6. Nxe5 $2 Qd4 7. Be3 Qxe5 $19) 6... Nd7 {[%emt 0:03:07]} 7. O-O {[%emt 0:01:09]} O-O {[%emt 0:00:36]} 8. Nc4 {[%emt 0:00:13] The position is equal.} Re8 {[%emt 0:00:39]} 9. a4 {[%emt 0:03:25]} a5 {[%emt 0:11:58] The main line 9...a5 scores better than 9...f6.} 10. Kh1 {[%emt 0:04:32]} Bf8 {[%emt 0:07:18]} 11. Be3 {[%emt 0:05:26]} b6 {[%emt 0:04:25]} 12. Nfd2 {[%emt 0:03:54]} Nc5 {[%emt 0:02:46]} 13. f4 {[%emt 0:03:03]} exf4 {[%emt 0:00:31]} 14. Bxf4 {[%emt 0:07:00]} f6 {[%emt 0:03:26]} 15. Qf3 {[%emt 0:10:31]} Be6 {[%emt 0:12:37]} 16. Ne3 $146 {[%emt 0:10:00]} (16. Qg3 Rc8 17. b3 Na6 18. Ne3 Nb4 19. Nf3 Kh8 20. h4 c5 21. Rac1 Nc6 22. h5 {½-½ Givon,A (2415)-Drenchev,P (2485) Albena Masters op 2013 (7)}) 16... Qd7 {[%emt 0:15:26]} 17. Qg3 {[%emt 0:04:37]} Re7 {[%emt 0:03:31]} 18. e5 {[%emt 0:13:06]} f5 {[%emt 0:07:25] NOTEXT-51077 White (e5)} 19. Nf3 {[%emt 0:00:44]} Bd5 {[%emt 0:01:33]} (19... Qe8 $14) 20. Nh4 {[%emt 0:03:26]} Rf7 {[%emt 0:02:28]} 21. Bg5 {[%emt 0:01:37][%cal Oa1e1]} Be6 {[%emt 0:00:14]} 22. Rf4 {[%emt 0:03:30]} g6 $1 {[%emt 0:11:58]} 23. Bf6 {[%emt 0:10:41]} Rg7 $2 {[%emt 0:05:52]} 24. Raf1 $18 {[%emt 0:05:30]} g5 {[%emt 0:03:56]} 25. Bxg5 {[%emt 0:07:05][%csl Of5,Oh7] Black has weak pawns. White has strong rooks and is better} h6 {[%emt 0:01:06] [#]} 26. Nhxf5 $1 {[%emt 0:00:08]} Rxg5 {[%emt 0:00:49]} 27. Qh4 {[%emt 0:00:38]} (27. Rg4 $1 $16 {[%cal Rg4g5]} Qd8 28. d4 Rxg4 29. Qxg4+ (29. Nxg4 Kh8 $16) 29... Qg5 30. Qf3 (30. dxc5 Qxg4 31. Nxg4 Bxc5 $18)) 27... Bxf5 $1 $11 {[%emt 0:01:37]} 28. Nxf5 {[%emt 0:00:06]} Qh7 {[%emt 0:01:12]} 29. R4f3 {[%emt 0:02:50][%mdl 1024] and Qc4+ should not be overlooked White has compensation.} (29. Nd4 $5) 29... Qg6 $1 {[%emt 0:00:34]} 30. Qf2 {[%emt 0:08:29]} Ne6 {[%emt 0:00:29]} 31. d4 $36 {[%emt 0:01:18][%mdl 2048] White fights for an advantage.} Kh8 {[%emt 0:01:24]} 32. Nh4 {[%emt 0:00:55]} Qg8 {[%emt 0:00:34]} 33. Nf5 {[%emt 0:01:23]} Rd8 {[%emt 0:00:32]} 34. Qh4 {[%emt 0:00:26]} Kh7 {[%emt 0:00:37][%mdl 8192] [#] Loses the game.} (34... Rg6 $11) 35. Nxh6 $1 $18 {[%emt 0:00:33]} Bxh6 {[%emt 0:00:17] [#]} (35... Qg6) 36. Rf7+ $1 {[%emt 0:00:14]} Ng7 {[%emt 0:00:40]} 37. R1f6 {[%emt 0:00:22][%csl Gh4][%cal Rf6h6]} Rg6 {[%emt 0:00:38]} 38. Rxg6 {[%emt 0:00:13] Weighted Error Value: White=0.12 (very precise) /Black=0.55  Loses game:     	---       	Black=2      Mistake:       	White=1     	Black=2      Inaccurate:     	White=2     	Black=4      OK:         	White=11    	Black=8      Best:        	---       	Black=3      Strong:       	White=2     	Black=3} (38. Rxc7 $2 {too greedy.} Rf8 39. Qe4 Rfxf6 40. exf6 Qf8 41. Rxc6 Bg5 $19) 1-0

[Event "87th Tata Steel Challengers 2025"]
[Site "Wijk aan Zee"]
[Date "2025.01.25"]
[Round "7.7"]
[White "Nogerbek, Kazybek"]
[Black "Pijpers, Arthur"]
[Result "1/2-1/2"]
[Annotator "TA"]
[ECO "B51"]
[WhiteElo "2514"]
[BlackElo "2474"]
[PlyCount "93"]
[EventDate "2025.01.13"]
[EventType "tourn"]
[EventCountry "NED"]
[SourceTitle "playchess.com"]
[Source "ChessBase"]
[SourceQuality "1"]
[TimeControl "40/6000+30:20/3000+30:900+30"]

{[%evp 9,93,16,20,15,17,0,20,0,0,0,0,0,15,15,15,22,36,44,60,43,37,47,81,82,87,60,89,46,81,33,35,25,30,-15,-19,-79,-88,-86,-73,-82,-78,-81,-81,-74,-72,-72,-78,-97,-92,-98,-100,-106,-54,-50,-33,-53,0,0,0,-12,-14,-7,-16,-50,0,0,0,0,0,0,0,-8,-8,-8,-8,-8,-6,-8,-8,-11,0,-8,0,-15,0,-8]} 1. e4 {[%emt 0:00:03]} c5 {[%emt 0:00:04]} 2. Nf3 {[%emt 0:00:10]} d6 {[%emt 0:00:04]} 3. Nc3 {[%emt 0:00:09]} Nc6 {[%emt 0:00:49]} 4. Bb5 {[%emt 0:00:10]} e5 {[%emt 0:01:01]} 5. d3 {[%emt 0:00:33]} Nf6 {[%emt 0:01:15]} 6. a4 {[%emt 0:05:20] B51: Sicilian: Moscow Variation (3 Bb5+) without 3...Bd7.} Be7 {[%emt 0:02:51]} 7. h3 {[%emt 0:00:45]} O-O {[%emt 0:08:46]} 8. Bc4 {[%emt 0:02:25]} Be6 $146 {[%emt 0:08:35][%cal Of6e4]} (8... Nd7 9. O-O Nb6 10. Ba2 Be6 11. Nd5 Bxd5 12. Bxd5 Nxd5 13. exd5 Nb4 14. c4 f5 {0-1 Punin,A (2289)-Karttunen,M (2489) Titled Tuesday intern op 01st Feb-B blitz 2022 (8)}) 9. Ng5 {[%emt 0:08:27]} Qd7 {[%emt 0:06:09]} 10. O-O {[%emt 0:02:26]} Bxc4 {[%emt 0:12:33]} 11. dxc4 {[%emt 0:00:38]} h6 {[%emt 0:01:58]} 12. Nf3 {[%emt 0:00:42]} Nd4 {[%emt 0:00:13]} 13. Be3 {[%emt 0:08:00]} Qc6 {[%emt 0:09:48]} 14. Re1 {[%emt 0:01:27]} Bd8 {[%emt 0:03:55]} 15. Nd2 {[%emt 0:02:03]} Nh7 {[%emt 0:05:00]} 16. Nd5 {[%emt 0:02:10]} Qd7 {[%emt 0:06:41]} 17. Ra3 {[%emt 0:04:02]} Ne6 {[%emt 0:03:03][%csl Od5] Strong Square White (d5)} 18. Qh5 {[%emt 0:07:25]} Kh8 {[%emt 0:00:54]} 19. h4 {[%emt 0:02:34] White is much more active.} (19. Nf1 $16) 19... Nd4 {[%emt 0:04:18]} 20. Bxd4 {[%emt 0:02:32]} cxd4 {[%emt 0:00:05]} 21. Rf3 {[%emt 0:12:11]} Qxa4 {[%emt 0:07:18]} 22. Rxf7 {[%emt 0:06:43]} (22. b3 $11 Qd7 23. Nf1) 22... Rxf7 $17 {[%emt 0:01:38]} (22... Qxc2 23. Rxf8+ Nxf8 24. Qe8 $11) 23. Qxf7 {[%emt 0:00:03]} Bxh4 {[%emt 0:00:07]} 24. b3 {[%emt 0:09:57] [#]} Qa5 {[%emt 0:05:36]} 25. Nf3 {[%emt 0:05:37][%cal Of3h4]} (25. Qxb7 $2 Rf8 (25... Bxf2+ $2 26. Kh2 $19) 26. Re2 Qa1+ 27. Nf1 Qd1 $19) 25... Ng5 {[%emt 0:10:01]} 26. b4 {[%emt 0:03:24] aiming for Nxg5.} Nxf7 {[%emt 0:00:45]} 27. bxa5 {[%emt 0:00:02]} Bf6 {[%emt 0:01:17]} 28. Rb1 {[%emt 0:06:20]} Nd8 {[%emt 0:00:01]} 29. c5 {[%emt 0:02:04]} dxc5 {[%emt 0:00:36]} 30. Nd2 {[%emt 0:00:01]} Rc8 {[%emt 0:02:39]} (30... c4 $17 31. Nxc4 Rc8) 31. Nc4 $15 {[%emt 0:00:11]} Rc6 {[%emt 0:00:25]} 32. g3 {[%emt 0:00:22]} g5 {[%emt 0:04:09]} ({Black should try} 32... Re6 $15) 33. Nxf6 $11 {[%emt 0:03:24]} Rxf6 {[%emt 0:00:01][%mdl 4096] Endgame KRN-KRN. Black is two pawns up.} 34. Rb5 {[%emt 0:00:21]} Rc6 {[%emt 0:02:32] ...a6 poses a challenge} 35. Nxe5 {[%emt 0:00:25]} Rc7 {[%emt 0:00:00]} 36. Kg2 {[%emt 0:04:48]} Kg7 {[%emt 0:01:37]} (36... Ne6 $15) 37. f4 {[%emt 0:01:10] The position is equal.} gxf4 {[%emt 0:00:43]} 38. gxf4 {[%emt 0:00:01]} Ne6 {[%emt 0:00:05]} 39. Kf3 {[%emt 0:03:15]} c4 {[%emt 0:01:36]} (39... d3 $5 40. c3 $8 c4 $11 (40... d2 41. Rb1 $16)) 40. Rb4 {[%emt 0:05:03] [#]} d3 $1 {[%emt 0:00:48]} 41. c3 {[%emt 0:52:27]} (41. cxd3 $2 {perishes.} c3 42. Rb1 c2 43. Rg1+ Kf8 $19) 41... d2 {[%emt 0:15:45]} 42. Rb1 {[%emt 0:00:00]} Nc5 $1 {[%emt 0:01:49]} 43. Ke3 {[%emt 0:00:00]} Nb3 {[%emt 0:01:34][%cal Oh6h5]} 44. Ke2 {[%emt 0:00:00]} Nc5 {[%emt 0:07:05]} 45. Ke3 {[%emt 0:00:26]} Nb3 {[%emt 0:12:19][%cal Og7f6]} 46. Ke2 {[%emt 0:00:00]} Nc5 {[%emt 0:00:05]} ({But not} 46... Nxa5 47. Kxd2 Nb3+ 48. Ke3) 47. Ke3 {[%emt 0:00:00] Weighted Error Value: White=0.11 (very precise) /Black=0.09 (flawless)   Mistake:       	White=2     	Black=3      Inaccurate:     	White=4     	Black=3      OK:         	White=17    	Black=15     Best:        	White=6     	Black=2      Strong:       	---       	Black=1} 1/2-1/2